[Event "53rd Indian Junior Open-ch 2024"]
[Site "Karnal"]
[Date "2024.09.16"]
[Round "1.1"]
[White "Bhattacharyya Soham"]
[Black "Tarun N"]
[Result "1-0"]
[ECO "D79"]
[WhiteElo "2425"]
[BlackElo "1777"]
[Annotator "TA"]
[PlyCount "49"]
[EventDate "2024.09.16"]
[EventType "swiss"]
[EventCountry "IND"]
[SourceTitle "playchess.com"]
[Source "ChessBase"]
[SourceQuality "1"]
[TimeControl "5400+30"]

{[%evp 21,49,27,45,39,50,59,50,54,68,53,58,53,53,52,51,53,103,112,125,105,160,160,172,157,334,331,541,418,404,325]} 1. d4 {[%emt 0:00:22]} Nf6 {[%emt 0:00:06]} 2. c4 {[%emt 0:00:06]} g6 {[%emt 0:00:04]} 3. g3 {[%emt 0:00:15]} c6 {[%emt 0:00:40]} 4. Bg2 {[%emt 0:02:35]} d5 {[%emt 0:05:14]} 5. Nf3 {[%emt 0:02:13]} Bg7 {[%emt 0:01:06]} 6. O-O {[%emt 0:00:12]} O-O {[%emt 0:00:25]} 7. cxd5 {[%emt 0:00:54]} cxd5 {[%emt 0:00:37]} 8. Ne5 {[%emt 0:01:13]} Nc6 {[%emt 0:13:07]} 9. Nc3 {[%emt 0:00:18][%cal Bb1c3,Bc3a4,Ba4c5][%mdl 32]} Be6 {[%emt 0:00:51]} 10. Nxc6 {[%emt 0:02:08]} bxc6 {[%emt 0:00:07]} 11. Bf4 {[%emt 0:00:15]} Nh5 {[%emt 0:02:38]} 12. Be3 {[%emt 0:00:19]} Rb8 {[%emt 0:01:16]} 13. Na4 {[%emt 0:05:09]} f5 {[%emt 0:11:08]} 14. Qd2 {[%emt 0:05:35] White is slightly better.} Qd6 {[%emt 0:04:40]} 15. Nc5 {[%emt 0:04:48]} Bc8 {[%emt 0:03:43]} 16. Nd3 {[%emt 0:04:48]} Ba6 {[%emt 0:00:37]} 17. b3 {[%emt 0:04:49]} Bxd3 {[%emt 0:42:00]} 18. Qxd3 {[%emt 0:00:10]} f4 {[%emt 0:00:35]} (18... Qd7 $14) 19. Bd2 $16 {[%emt 0:00:34]} fxg3 {[%emt 0:01:39]} 20. hxg3 {[%emt 0:02:02]} e5 {[%emt 0:00:24]} (20... Rb6 $142 21. Rac1 Nf6) 21. dxe5 {[%emt 0:01:24]} Bxe5 {[%emt 0:00:10] [#]} 22. Rac1 {[%emt 0:00:07][%cal Oc1c6] Strongly threatening Rxc6!} Rbe8 $2 {[%emt 0:09:10]} (22... Nf6 $16 {keeps fighting.} 23. Rc2 Qd7) 23. Rxc6 $18 {[%emt 0:00:25]} Qb8 {[%emt 0:00:55]} (23... Qd7 24. Qxd5+ Rf7) 24. Bxd5+ {[%emt 0:01:53] A strong pair of Bishops.} Kh8 {[%emt 0:00:04]} 25. Bc3 {[%emt 0:00:16] Weighted Error Value: White=0.22 (precise) /Black=0.49.  Loses game:     	---       	Black=1      Mistake:       	---       	Black=3      OK:         	White=4     	Black=6      Best:        	White=3     	---} 1-0

[Event "53rd Indian Junior Open-ch 2024"]
[Site "Karnal"]
[Date "2024.09.16"]
[Round "1.2"]
[White "Giridhar A"]
[Black "Manish Anto Cristiano F"]
[Result "1/2-1/2"]
[ECO "D37"]
[WhiteElo "1775"]
[BlackElo "2364"]
[Annotator "TA"]
[PlyCount "84"]
[EventDate "2024.09.16"]
[EventType "swiss"]
[EventCountry "IND"]
[SourceTitle "playchess.com"]
[Source "ChessBase"]
[SourceQuality "1"]
[TimeControl "5400+30"]

{[%evp 9,84,24,31,32,25,33,25,27,27,31,35,29,24,33,32,29,19,9,27,3,0,0,16,25,47,45,43,6,0,0,10,0,0,0,0,0,0,0,10,-21,-11,-47,0,-56,-45,-47,5,20,34,53,43,61,54,70,64,66,201,187,233,233,502,491,785,283,249,299,262,315,311,308,297,299,256,138,143,142,196]} 1. d4 {[%emt 0:00:09]} Nf6 {[%emt 0:00:21]} 2. c4 {[%emt 0:00:10]} e6 {[%emt 0:00:19]} 3. Nf3 {[%emt 0:00:10]} d5 {[%emt 0:01:17]} 4. Nc3 {[%emt 0:00:12]} a6 {[%emt 0:00:50]} 5. cxd5 {[%emt 0:04:54]} exd5 {[%emt 0:00:21]} 6. Bg5 {[%emt 0:00:27]} Be6 {[%emt 0:00:20]} 7. e3 {[%emt 0:00:54]} Nbd7 {[%emt 0:00:29]} 8. Bd3 {[%emt 0:01:04] White has an edge.} c6 {[%emt 0:00:52]} 9. O-O {[%emt 0:00:23]} Bd6 {[%emt 0:00:14]} 10. h3 {[%emt 0:01:21]} O-O {[%emt 0:00:46]} 11. Qc2 {[%emt 0:02:46][%cal Od3h7]} Qc7 {[%emt 0:01:46]} 12. Ne2 {[%emt 0:03:05]} Rfe8 {[%emt 0:02:50]} 13. Rfc1 {[%emt 0:05:47]} Rac8 {[%emt 0:05:15]} 14. Rab1 {[%emt 0:02:24]} Ne4 {[%emt 0:03:42]} 15. Bf4 {[%emt 0:08:28]} h6 {[%emt 0:03:47]} 16. b4 {[%emt 0:02:03]} g5 {[%emt 0:02:00]} 17. Bxd6 {[%emt 0:03:04]} Qxd6 {[%emt 0:00:19]} 18. Bxe4 {[%emt 0:04:35]} (18. Nd2 {looks sharper.} Ndf6 19. a4 Bf5 20. Nxe4 Bxe4 21. Ng3) 18... dxe4 {[%emt 0:00:14]} 19. Nd2 {[%emt 0:00:10]} f5 {[%emt 0:08:22]} 20. Nc4 {[%emt 0:03:35]} Qf8 {[%emt 0:14:00]} 21. a4 {[%emt 0:02:02]} Bd5 {[%emt 0:02:45]} 22. Qd2 Kh8 {[%emt 0:02:09]} 23. Na5 {[%emt 0:13:11]} b6 {[%emt 0:02:49]} 24. Nb3 {[%emt 0:00:28]} Qf7 {[%emt 0:03:01]} 25. Rc3 {[%emt 0:08:02]} Rg8 {[%emt 0:05:07]} (25... Rf8 $15 {is more appropriate.}) 26. a5 {[%emt 0:05:18]} (26. Qc2 $11) 26... Rcf8 {[%emt 0:03:29]} 27. axb6 {[%emt 0:01:52]} Nxb6 {[%emt 0:00:08]} (27... h5 $15) 28. Na5 $11 {[%emt 0:02:25]} f4 {[%emt 0:07:50]} 29. Nxc6 {[%emt 0:04:28]} Nc4 {[%emt 0:03:20] [#] Prevents Ne5} 30. Rxc4 {[%emt 0:06:52]} Bxc4 {[%emt 0:00:06]} 31. Ne5 $36 {[%emt 0:00:05][%mdl 2048] Black is under pressure.} Qe6 {[%emt 0:00:45][%cal Oc4d3]} 32. Rc1 {[%emt 0:03:46]} Bd5 {[%emt 0:01:14] This move loses the game for Black.} (32... Bb5 $14) 33. exf4 $18 {[%emt 0:00:58][%cal Be3f4,Bf4f5,Bf5g6][%mdl 32]} e3 {[%emt 0:01:24]} (33... a5 $142) 34. Qxe3 {[%emt 0:05:31] g4 would now be deadly.} (34. fxe3 gxf4 35. Nxf4 Rxf4 36. exf4 Rxg2+ (36... Qxh3 37. g4 $11) 37. Qxg2 Bxg2 38. Kxg2 Qa2+ 39. Kg1 h5 $11) 34... Bxg2 {[%emt 0:07:59]} (34... gxf4 35. Nxf4 Rxf4 36. Qxf4 Rxg2+ 37. Kf1 Qxh3 38. Qf6+ Kh7) 35. f5 {[%emt 0:01:07]} Qd5 {[%emt 0:01:58]} (35... Rxf5 $142 36. Kxg2 Rgf8) 36. Ng6+ $2 {[%emt 0:02:51]} (36. Rc6 Rxf5 37. Nc3 (37. Rxa6 Ra8 $18) (37. Rxh6+ Kg7 $18)) 36... Rxg6 {[%emt 0:00:24]} 37. fxg6 {[%emt 0:00:02]} Qe4 {[%emt 0:01:15]} 38. Rc7 {[%emt 0:01:06] Threatening mate with g7+.} Kg8 {[%emt 0:00:51]} 39. Qb3+ {[%emt 0:01:43]} Qd5 {[%emt 0:00:08]} 40. Qxd5+ {[%emt 0:00:07]} Bxd5 {[%emt 0:00:07] [#]} 41. Nc3 {[%emt 0:00:29] Against Be4} (41. Ng3 $1 $18 {[%cal Rg3h5] Threatens to win with Nh5.} Rf6 42. Rc5) 41... Bf3 {[%emt 0:00:19]} 42. d5 {[%emt 0:02:09] Strongly threatening d6.} Rf6 {[%emt 0:16:18] Weighted Error Value: White=0.31/Black=0.24 (precise) .  Mistake:       	White=3     	Black=7      Inaccurate:     	White=3     	---        OK:         	White=13    	Black=16     Best:        	White=7     	Black=1      Brilliant:      	White=1     	---} (42... Rd8 $16 {was necessary.}) 1/2-1/2

[Event "53rd Indian Junior Open-ch 2024"]
[Site "Karnal"]
[Date "2024.09.16"]
[Round "1.3"]
[White "Adireddy Arjun"]
[Black "Lavyaajyoti Routray"]
[Result "1/2-1/2"]
[ECO "B90"]
[WhiteElo "2343"]
[BlackElo "1770"]
[Annotator "TA"]
[PlyCount "82"]
[EventDate "2024.09.16"]
[EventType "swiss"]
[EventCountry "IND"]
[SourceTitle "playchess.com"]
[Source "ChessBase"]
[SourceQuality "1"]
[TimeControl "5400+30"]

{[%evp 12,82,16,16,8,0,20,0,14,-41,-18,-22,-28,-43,-18,-48,-42,-73,-59,-77,-83,-150,-60,-131,-135,-132,-133,-131,-125,-136,-65,-109,-55,-168,-138,-182,-99,-189,-194,-211,-206,-177,-175,-193,-103,-77,0,0,41,44,50,39,225,-123,-125,-122,-46,-127,0,0,0,0,0,0,0,0,0,0,0,-361,-419,-353,29985]} 1. e4 {[%emt 0:00:18]} c5 {[%emt 0:00:29]} 2. Nf3 {[%emt 0:00:21]} d6 {[%emt 0:00:20]} 3. d4 {[%emt 0:00:07]} cxd4 {[%emt 0:00:12]} 4. Nxd4 {[%emt 0:00:07]} Nf6 {[%emt 0:00:11]} 5. Nc3 {[%emt 0:00:06]} a6 {[%emt 0:00:16]} 6. h3 {[%emt 0:00:17]} e5 {[%emt 0:00:52]} 7. Nb3 {[%emt 0:00:20]} Be6 {[%emt 0:01:16]} 8. f4 {[%emt 0:00:09][%cal Bf2f4,Bf4f5][%mdl 32]} Be7 {[%emt 0:01:31]} 9. f5 {[%emt 0:05:48]} Bd7 {[%emt 0:02:11] The position is equal.} 10. Be2 {[%emt 0:02:46]} (10. g4 $11) 10... Bc6 $15 {[%emt 0:08:29]} 11. Bf3 {[%emt 0:02:01]} b5 {[%emt 0:09:17]} 12. a3 {[%emt 0:18:22]} Nbd7 {[%emt 0:08:23]} 13. O-O {[%emt 0:12:19]} O-O {[%emt 0:10:15]} 14. Qe2 {[%emt 0:10:08]} a5 15. Rd1 {[%emt 0:19:38][%cal Oc1e3]} Qc7 {[%emt 0:28:48]} 16. Bd2 {[%emt 0:17:12]} (16. Qd3 $142) 16... Qb7 {[%emt 0:07:15]} (16... b4 $1 $17 {[%cal Rb4c3]} 17. axb4 axb4) 17. Nd5 {[%emt 0:02:35]} Bxd5 $17 {[%emt 0:05:32]} (17... Nxd5 18. exd5 Bxd5 19. Bxd5 Qxd5 20. Bg5 $11 (20. Nxa5 Nf6 $11) (20. Nxa5 Rac8 $11)) 18. exd5 {[%emt 0:00:03]} a4 {[%emt 0:01:03]} 19. Nc1 {[%emt 0:01:52]} Rac8 {[%emt 0:07:59]} (19... Nxd5 $2 20. Be3 $18) 20. Be1 {[%emt 0:04:02]} Nc5 {[%emt 0:04:15]} (20... Bd8 $17 {[%cal Oe5e4] ...e4! would now be deadly.} 21. g3 Re8) 21. g4 {[%emt 0:01:58]} h6 {[%emt 0:00:57]} (21... Rfe8 $17 22. Nd3 e4 (22... Nxd5 $2 23. Nxc5 Rxc5 24. Kf1 $18) 23. Nxc5 exf3 (23... Rxc5 24. Bg2 $17) 24. Nxb7 fxe2) 22. b4 {[%emt 0:00:29]} (22. Nd3 $15) 22... Ncd7 $19 {[%emt 0:01:10]} 23. Nd3 {[%emt 0:00:30]} Nb6 {[%emt 0:00:38]} ({But not} 23... Nxd5 24. Kh1 $17) (23... e4 $19 24. Bxe4 Nxe4 25. Qxe4 Rfe8) 24. Nxe5 {[%emt 0:00:30]} dxe5 {[%emt 0:00:37]} 25. d6 {[%emt 0:00:01]} e4 $1 {[%emt 0:00:27]} 26. dxe7 {[%emt 0:00:05]} Rfe8 {[%emt 0:00:30]} (26... exf3 $2 {perishes.} 27. exf8=R+ (27. exf8=Q+ Rxf8 28. Qxb5 Ne4 $18) 27... Rxf8 28. Qxb5 $16) 27. Bg2 {[%emt 0:00:19]} Rxe7 {[%emt 0:00:24]} ({Better is} 27... Nbd5 $19 28. Rd2 Rxe7 (28... Nxe7 $2 29. Bf2 $19)) 28. Qxb5 $17 {[%emt 0:00:32]} Rxc2 {[%emt 0:00:31]} (28... Qa7 $1 $17 {Hoping for ...Nc4+.} 29. Qa5 Qb8) 29. Rac1 {[%emt 0:00:49]} Rec7 {[%emt 0:00:33]} 30. Rxc2 {[%emt 0:00:06]} Rxc2 {[%emt 0:00:02]} 31. Bf2 {[%emt 0:00:34]} Nfd7 $2 {[%emt 0:00:54] [#]} ({Black should try} 31... Rc6 $14) 32. Rxd7 $2 {[%emt 0:01:34]} Qxd7 {[%emt 0:00:19]} 33. Qxb6 {[%emt 0:00:02]} Qd1+ {[%emt 0:00:35]} 34. Kh2 {[%emt 0:00:58] [#]} Qe2 {[%emt 0:00:32]} (34... Qd2 $1 $17 {[%cal Rd2f2]} 35. Kg1 Qc1+ 36. Bf1 Qxa3) 35. Kg1 $11 {[%emt 0:00:28]} Rc1+ {[%emt 0:00:12]} 36. Kh2 {[%emt 0:00:02][%cal Og4g5] And now g5! would win.} Rc2 {[%emt 0:00:16]} 37. Kg1 {[%emt 0:00:32]} Rc1+ $40 {[%emt 0:00:05][%mdl 128] Black is up to no good.} 38. Kh2 {[%emt 0:00:06][%cal Og4g5] Threatens to win with g5!} Rc2 {[%emt 0:00:04]} 39. Kg1 {[%emt 0:01:20]} Qd1+ {[%emt 0:02:40]} 40. Bf1 $2 {[%emt 0:01:04][%mdl 8192]} (40. Kh2 $11 {and White has nothing to worry.} Qd2 41. Kg1 Qc1+ 42. Bf1 Qxa3 43. f6 Rxf2 44. Qd8+ (44. Qxf2 Qxb4 45. Qc2 h5 $11) 44... Kh7 45. Kxf2) 40... Rc1 $19 {[%emt 0:00:30]} 41. Qb5 {[#]} Qe2 $4 {[%emt 0:00:30][%mdl 40960] Against Be3.   Weighted Error Value: White=0.46/Black=0.30.  Loses game:     	White=1     	Black=1      Missed win:     	White=1     	Black=1      Mistake:       	White=5     	Black=7      Inaccurate:     	White=4     	Black=1      OK:         	White=12    	Black=12     Best:        	White=7     	Black=3     . An unexpected result.} 1/2-1/2

[Event "53rd Indian Junior Open-ch 2024"]
[Site "Karnal"]
[Date "2024.09.16"]
[Round "1.4"]
[White "Karthik Raj C"]
[Black "Rohit S"]
[Result "0-1"]
[ECO "D05"]
[WhiteElo "1806"]
[BlackElo "2309"]
[Annotator "TA"]
[PlyCount "68"]
[EventDate "2024.09.16"]
[EventType "swiss"]
[EventCountry "IND"]
[SourceTitle "playchess.com"]
[Source "ChessBase"]
[SourceQuality "1"]
[TimeControl "5400+30"]

{[%evp 10,68,2,0,0,-3,-8,-8,-6,-35,-14,-18,-4,-15,-7,-24,-12,-21,0,-8,2,-10,0,-10,-8,-20,-13,-17,-17,-248,-242,-214,-96,-100,-93,-99,0,-833,-845,-739,-454,-423,-182,-897,-895,-918,-912,-893,-790,-783,-780,-742,-624,-1143,-1133,-1871,-1733,-1646,-1535,-29985,-29986]} 1. d4 {[%emt 0:00:15]} Nf6 {[%emt 0:00:08]} 2. Nf3 {[%emt 0:00:05]} d5 {[%emt 0:00:10]} 3. e3 {[%emt 0:00:12]} e6 {[%emt 0:01:06]} 4. Bd3 {[%emt 0:00:12]} b6 {[%emt 0:00:23]} 5. Nbd2 {[%emt 0:06:14]} Bb7 {[%emt 0:00:17]} 6. Qe2 {[%emt 0:00:06]} Ne4 {[%emt 0:05:24]} 7. Ne5 {[%emt 0:08:23]} Bd6 {[%emt 0:07:52]} 8. Qf3 {[%emt 0:13:52][%csl Ge5,LRe4,LRf7][%cal Rf3f7]} Nf6 {[%emt 0:01:28] The position is equal.} (8... Ng5 {looks sharper.} 9. Qh5 O-O 10. O-O f6) 9. Ng4 {[%emt 0:16:42]} Nbd7 {[%emt 0:05:40]} 10. e4 {[%emt 0:01:48]} Nxg4 {[%emt 0:13:10]} 11. Qxg4 {[%emt 0:00:15]} Nf6 {[%emt 0:00:38]} 12. Qe2 {[%emt 0:02:04] aiming for e5.} dxe4 {[%emt 0:02:12]} 13. Nxe4 {[%emt 0:00:13]} Be7 {[%emt 0:01:22]} 14. c3 {[%emt 0:02:51]} O-O {[%emt 0:01:46]} 15. h4 h6 {[%emt 0:08:18]} 16. Bd2 {[%emt 0:17:48]} c5 {[%emt 0:02:44]} 17. dxc5 {[%emt 0:01:23]} bxc5 {[%emt 0:00:50]} 18. O-O-O {[%emt 0:01:01]} Qb6 {[%emt 0:07:55] next ...Rfb8 is good for Black.} 19. g4 $2 {[%emt 0:04:35]} (19. Nxf6+ $11 Bxf6 20. Bf4) 19... Rab8 $1 $19 {[%emt 0:03:38]} 20. b3 {[%emt 0:05:46] [#] Black must now prevent Nxf6+.} c4 {[%emt 0:05:11]} 21. Nxf6+ $17 {[%emt 0:02:11]} Bxf6 {[%emt 0:00:11]} 22. Bxc4 {[%emt 0:00:04][%cal Og4g5] Strongly threatening g5!} Qa5 {[%emt 0:01:17] Black is more active.} (22... Bxh1 $17 23. Rxh1 Qa5) 23. b4 $2 {[%emt 0:03:07][%mdl 8192]} (23. Rh3 $11) 23... Qa3+ $19 {[%emt 0:00:19]} 24. Kc2 {[%emt 0:00:18]} Bxh1 {[%emt 0:02:17]} 25. Rxh1 {[%emt 0:00:02] [#]} Rxb4 {[%emt 0:06:13]} 26. Bb3 $2 {[%emt 0:06:14] [#]} (26. cxb4 Qb2+ 27. Kd3 Rd8+ 28. Ke3 Qd4+ 29. Kf3 Qxd2 30. Qxd2 Rxd2 31. h5) 26... Rxb3 $1 {[%emt 0:02:40][%mdl 512]} 27. axb3 {[%emt 0:00:32]} Qa2+ {[%emt 0:00:12]} 28. Kd3 {[%emt 0:00:40]} Qxb3 {[%emt 0:00:24] Hoping for ...Rd8+.} 29. Qe4 {[%emt 0:02:18]} Rd8+ {[%emt 0:01:08]} 30. Ke2 {[%emt 0:00:13]} Qb2 {[%emt 0:01:13]} 31. Qe3 {[%emt 0:06:36]} Qb5+ {[%emt 0:00:09]} 32. Ke1 {[%emt 0:00:00]} Qb1+ {[%emt 0:00:53]} 33. Bc1 {[%emt 0:00:00]} Rd3 {[%emt 0:00:10]} 34. Qf4 {[%emt 0:00:00]} e5 {[%emt 0:00:08] Weighted Error Value: White=1.21/Black=0.50.  Loses game:     	White=2     	---        Mistake:       	White=1     	Black=2      Inaccurate:     	White=1     	---        OK:         	White=6     	Black=4      Best:        	White=2     	Black=2      Strong:       	---       	Black=1      Brilliant:      	---       	Black=1} 0-1

[Event "53rd Indian Junior Open-ch 2024"]
[Site "Karnal"]
[Date "2024.09.16"]
[Round "1.5"]
[White "Sourath Biswas"]
[Black "Gagan Sahu"]
[Result "1-0"]
[ECO "A45"]
[WhiteElo "2305"]
[BlackElo "1763"]
[Annotator "TA"]
[PlyCount "87"]
[EventDate "2024.09.16"]
[EventType "swiss"]
[EventCountry "IND"]
[SourceTitle "playchess.com"]
[Source "ChessBase"]
[SourceQuality "1"]
[TimeControl "5400+30"]

{[%evp 9,87,26,17,4,0,9,29,0,43,28,100,105,63,50,177,197,177,195,187,193,189,180,149,147,145,143,141,140,139,131,135,134,169,119,124,120,135,138,177,150,147,133,154,127,125,112,107,111,112,113,104,96,69,13,45,26,65,23,182,178,369,377,348,140,145,0,0,0,85,83,487,468,469,486,468,451,29992,599,29993,29994]} 1. d4 {[%emt 0:00:12]} Nf6 {[%emt 0:00:19]} 2. Bf4 {[%emt 0:00:07]} c5 {[%emt 0:00:18]} 3. e3 {[%emt 0:00:05]} Nd5 {[%emt 0:00:15]} 4. Bg3 {[%emt 0:00:08]} Qb6 {[%emt 0:00:21]} 5. c4 {[%emt 0:02:07]} Nf6 {[%emt 0:00:47]} 6. Nc3 {[%emt 0:00:07]} Qxb2 {[%emt 0:00:52]} 7. Nge2 {[%emt 0:00:03]} Qa3 {[%emt 0:00:18]} 8. Rb1 {[%emt 0:00:37] White has an edge.} e6 {[%emt 0:09:31]} 9. Qd2 {[%emt 0:07:08]} a6 {[%emt 0:03:09] Inhibits Nb5.} (9... cxd4 $11 10. Nxd4 (10. Nb5 Ne4 $17) 10... a6) 10. Bc7 $1 $16 {[%emt 0:01:28]} cxd4 {[%emt 0:03:39]} 11. exd4 {[%emt 0:00:09] Black must now prevent c5.} Bb4 {[%emt 0:08:16]} (11... Nc6 $1 $14) 12. Rb3 $18 {[%emt 0:00:20]} Bxc3 {[%emt 0:00:08]} (12... Ne4 13. Qc2 (13. Nxe4 $2 Bxd2+ 14. Nxd2 Qxa2 $19) 13... Nxc3 14. Rxa3 (14. Nxc3 Qa4 $18) 14... Nb5+ 15. Kd1 Nxc7 16. Rh3 $18) 13. Nxc3 {[%emt 0:00:07][%cal Be2c3,Bc3a4,Ba4b6][%mdl 32]} (13. Rxa3 Bxd2+ 14. Kxd2 d5 $15) 13... Qe7 {[%emt 0:00:10] Black is weak on the dark squares} 14. c5 {[%emt 0:01:14]} O-O {[%emt 0:08:01]} 15. Bd6 {[%emt 0:00:07]} Qd8 {[%emt 0:00:11]} 16. Bxf8 {[%emt 0:04:19]} Qxf8 {[%emt 0:02:31]} 17. Na4 {[%emt 0:00:10]} Nc6 {[%emt 0:00:17]} 18. Nb6 {[%emt 0:00:07]} Rb8 {[%emt 0:00:06]} 19. Be2 {[%emt 0:00:25]} d6 {[%emt 0:02:06]} 20. Bf3 {[%emt 0:03:42]} Bd7 {[%emt 0:06:51]} 21. O-O {[%emt 0:00:50]} ({White should play} 21. Nxd7 $18 Nxd7 22. Bxc6 bxc6 23. Rxb8 Qxb8 24. O-O) 21... Be8 $16 {[%emt 0:04:16]} 22. Qe3 {[%emt 0:06:08]} dxc5 {[%emt 0:13:57]} 23. dxc5 {[%emt 0:00:05]} Ne7 {[%emt 0:00:51]} 24. Qf4 {[%emt 0:00:25]} Bc6 {[%emt 0:00:24]} 25. Bxc6 {[%emt 0:09:24]} Nxc6 {[%emt 0:35:26]} 26. Rd1 {[%emt 0:02:48]} e5 {[%emt 0:00:00]} 27. Qe3 {[%emt 0:06:57]} Nd4 {[%emt 0:00:00]} 28. Rc3 {[%emt 0:01:46]} Re8 {[%emt 0:00:00]} 29. h3 $36 {[%emt 0:02:36][%mdl 2048] Keeping Black busy.} Re6 {[%emt 0:00:00]} 30. Re1 {[%emt 0:04:46]} h6 {[%emt 0:00:00]} 31. Qc1 {[%emt 0:04:56]} (31. Rcc1 $14) 31... Qe7 {[%emt 0:00:00]} 32. Rce3 {[%emt 0:00:14]} Qc7 {[%emt 0:00:00]} 33. Nc4 {[%emt 0:04:48][%cal Rc4e5]} Qxc5 $2 {[%emt 0:00:00]} (33... Nd7 $11 {and Black has nothing to worry.}) 34. Nxe5 $18 {[%emt 0:00:08]} (34. Rxe5 $2 Rxe5 35. Rxe5 (35. Nxe5 $2 Ne2+ 36. Rxe2 Qxc1+ $19) 35... Qxe5 36. Nxe5 Ne2+ 37. Kf1 Nxc1 $19) 34... Qb5 {[%emt 0:00:00]} (34... Qxc1 35. Rxc1 Nd5) 35. Qc7 {[%emt 0:04:59]} Qe8 {[%emt 0:00:00]} 36. Qxb7 {[%emt 0:01:58]} (36. Nxf7 $18 {is more deadly.} Qxf7 37. Qc8+ (37. Qd8+ Kh7 $18) 37... Qf8 38. Qxf8+ (38. Qxb7 Rxe3 39. Rxe3 Qd6 $16) 38... Kxf8 39. Rxe6 Nxe6 40. Rxe6) 36... Nc2 $16 {[%emt 0:03:32] [#]} 37. f4 {[%emt 0:12:26]} Nxe1 {[%emt 0:00:45]} 38. Rxe1 {[%emt 0:00:06]} Nd7 {[%emt 0:00:14] [#]} 39. Rc1 $1 {[%emt 0:00:10] White has more active pieces.} Nf8 {[%emt 0:01:27][%mdl 8192] [#]} (39... Nxe5 $2 40. Rc8 Ng6 (40... Nf3+ $2 41. gxf3 $18) 41. f5 (41. Rxe8+ Rxe8 42. f5 Nh4 $18) 41... Re1+ 42. Kh2 $18) (39... Nb6 $16 {is tougher.}) 40. Rc8 $1 $18 {[%emt 0:00:09]} Qe7 {[%emt 0:00:48]} 41. Nd7 {[%emt 0:00:16]} ({Don't do} 41. Rc7 Qe8 42. Rc8 (42. Nxf7 Re1+ 43. Kh2 Qe3 $11) (42. Rxf7 g5 $18) 42... Qe7) 41... Re1+ {[%emt 0:00:39]} 42. Kh2 {[%emt 0:00:04]} Qe3 {[%emt 0:00:21]} (42... Rd1 $18) 43. Rxf8+ {[%emt 0:00:07]} (43. Nxf8 $2 {is the wrong capture.} Qxf4+ 44. g3 Re2+ $19) 43... Kh7 {[%emt 0:00:02] [#]} 44. Nf6+ $1 {[%emt 0:00:06][%mdl 512] Weighted Error Value: White=0.17 (very precise) /Black=0.43.  Loses game:     	---       	Black=1      Missed win:     	White=1     	---        Mistake:       	White=3     	Black=6      Inaccurate:     	White=2     	Black=3      OK:         	White=7     	Black=15     Best:        	White=5     	Black=3      Strong:       	White=3     	---} 1-0